fUST/lending_fUST_20240409
["ID","MTS","AMOUNT","RATE_DAILY","PERIOD"]
[321905710,1712604545179,-464.50545485,0.00034,4]
[321905711,1712604545200,-400.0,0.00035192,2]
[321905712,1712604545220,-400.0,0.00035192,2]
[321905713,1712604545241,-190.72501436,0.00035193,4]
[321905714,1712604545261,-205.66350423,0.00035193,4]
[321905715,1712604545282,-180.78171506,0.00035193,4]
[321905716,1712604545301,-202.7125,0.00035193,4]
[321905717,1712604545322,-287.08655488,0.00035193,4]
[321905718,1712604545343,-283.05218327,0.00035193,4]
[321905719,1712604545364,-172.68981011,0.00035193,4]
[321905720,1712604545384,-185.25072904,0.00035193,4]
[321905721,1712604545404,-7476.92932344,0.00035193,4]
[321905722,1712604545424,-967.17141015,0.00035194,4]
[321905723,1712604545445,-1200.99951458,0.00035195,4]
[321905724,1712604545464,-226.26479222,0.00035195,35]
[321905725,1712604545483,-3498.44893035,0.00035195,4]
[321905726,1712604545504,-718.7580495,0.00035195,4]
[321905727,1712604545524,-293.31884329,0.00035195,4]
[321905728,1712604545544,-155.08199869,0.00035195,4]
[321905729,1712604545566,-155.80447553,0.00035195,4]
[321905730,1712604545586,-292.302438,0.00035195,4]
[321905731,1712604545607,-155.32632587,0.00035195,4]
[321905732,1712604545693,-326.05013644,0.00035195,4]
[321905733,1712604545714,-212.91504204,0.00035195,4]
[321905734,1712604545735,-281.91627017,0.00035195,4]
[321905735,1712604545755,-253.81367367,0.00035195,4]
[321905736,1712604545776,-339.54683811,0.00035195,4]
[321905737,1712604545796,-217.8175805,0.00035195,4]
[321905738,1712604545817,-300.72306629,0.00035195,4]
[321905739,1712604545837,-341.44548558,0.00035196,4]
[321905740,1712604545858,-4404.36251622,0.00035196,4]
[321905741,1712604545878,-3543.84393524,0.00035196,4]
[321905742,1712604545899,-21424.9983772,0.00035197,2]
[321905743,1712604550114,-278.36597163,0.00033432,4]
[321905744,1712604550135,-3475.0016228,0.00035197,2]
[321905745,1712604550159,-494.6938693,0.00035693,2]
[321905746,1712604553084,-883.11072616,0.00035693,2]
[321905747,1712604556094,-110.10884364,0.00035693,2]
[321905748,1712604556119,-200.0,0.00036504,2]
[321905749,1712604556146,-974.05820572,0.00036704,2]
[321905750,1712604571104,-154.84515485,0.00036704,2]
[321905792,1712604631870,-0.25673453,0.00036704,2]
[321905793,1712604631879,-171.282353,0.0003722,2]
[321905794,1712604631889,-568.3482681,0.00037346,2]
[321905795,1712604631898,-180.408073,0.00038198,2]
[321905796,1712604631908,-154.92253873,0.00039474,7]
[321905797,1712604631918,-595.96032213,0.00039475,2]
[321905798,1712604631927,-159.075559,0.00039574,2]
[321905799,1712604631936,-299.55749358,0.000402,2]
[321905801,1712604631945,-436.60035195,0.00042219,2]
[321905802,1712604631955,-205.99864378,0.0004237,2]
[321905804,1712604631970,-398.29977705,0.0004237,2]
[321905806,1712604631979,-1737.03060995,0.00043873,2]
[321905887,1712604638184,-1786.26891582,0.00043873,2]
[321905888,1712604638193,-165.90029737,0.00043873,5]
[321905889,1712604638202,-521.64046095,0.00043896,2]
[321905890,1712604638210,-153.62015341,0.00043989,30]
[321905891,1712604638220,-550.0,0.00043998,3]
[321905892,1712604638229,-168.0,0.00043998,5]
[321905893,1712604638238,-1000.0,0.00044,2]
[321905894,1712604638248,-1000.0,0.00045,120]
[321905895,1712604638258,-1000.0,0.00045,120]
[321905896,1712604638267,-159.075559,0.00045662,2]
[321905897,1712604638275,-599.9358448,0.00045883,2]
[321905898,1712604638284,-166.666666,0.00046003,2]
[321905899,1712604638294,-153.62015341,0.00046931,30]
[321905900,1712604638303,-2000.0,0.00046973,2]
[321905901,1712604638312,-594.63069349,0.000471,4]
[321905902,1712604638322,-166.666666,0.00047257,2]
[321905903,1712604638331,-153.15238979,0.00047638,30]
[321905904,1712604638340,-543.25050812,0.00047638,2]
[321905905,1712604638349,-770.0,0.00048398,3]
[321905906,1712604638358,-166.666666,0.00048511,2]
[321905907,1712604638371,-2000.0,0.00049557,2]
[321905908,1712604638383,-166.666666,0.00049765,2]
[321905909,1712604638467,-925.7627821,0.0005,2]
[321905910,1712604638476,-250.14061671,0.0005,60]
[321905911,1712604638486,-1000.0,0.0005,120]
[321905912,1712604638495,-539.55196625,0.0005,120]
[321905913,1712604638519,-460.44803375,0.0005,120]
[321905914,1712604638528,-175.349068,0.00050469,2]
[321905915,1712604638537,-599.9358448,0.00050883,2]
[321905917,1712604638546,-166.666666,0.00051019,2]
[321905919,1712604638556,-153.15238979,0.00051179,60]
[321905921,1712604638565,-2000.0,0.00051686,2]
[321905923,1712604638574,-159.075559,0.0005175,2]
[321905924,1712604638583,-165.11983158,0.0005197,60]
[321905925,1712604638592,-166.666666,0.00052274,2]
[321905926,1712604638602,-153.15238979,0.0005311,60]
[321905927,1712604638611,-1077.0,0.00053238,10]
[321905928,1712604638620,-153.15238979,0.00053751,60]
[321905929,1712604638630,-166.80514614,0.00054011,60]
[321905930,1712604638639,-150.92453773,0.00054265,2]
[321905931,1712604638649,-207.19479391,0.00054604,4]
[321905932,1712604638658,-153.0,0.00054605,2]
[321905933,1712604638667,-153.0,0.00054605,2]
[321905934,1712604638678,-153.0,0.00054605,2]
[321905935,1712604638687,-172.241097,0.00054795,2]
[321905936,1712604638696,-153.0,0.00054879,2]
[321905937,1712604638705,-153.0,0.00054879,60]
[321905938,1712604638714,-153.0,0.00054879,60]
[321905939,1712604638723,-202.7046065,0.00054879,60]
[321905940,1712604638732,-153.0,0.00054879,2]
[321905941,1712604638742,-306.0,0.00054879,30]
[321905942,1712604638751,-202.7046065,0.00054879,60]
[321905943,1712604638760,-153.0,0.00054879,60]
[321905944,1712604638770,-153.0,0.00054879,2]
[321905945,1712604638780,-153.0,0.00054879,60]
[321905946,1712604638789,-153.0,0.00054879,2]
[321905947,1712604638799,-153.0,0.00054879,2]
[321905948,1712604638809,-202.7046065,0.00054879,60]
[321905949,1712604638820,-153.0,0.00054879,60]
[321905950,1712604638830,-153.0,0.00054879,60]
[321905951,1712604638839,-153.0,0.00054879,2]
[321905952,1712604638849,-153.0,0.00054879,2]
[321905953,1712604638860,-202.7046065,0.00054879,60]
[321905954,1712604638869,-153.0,0.00054879,60]
[321905955,1712604638879,-153.0,0.00054879,60]
[321905956,1712604638888,-153.0,0.00054879,2]
[321905957,1712604638897,-153.0,0.00054879,2]
[321905958,1712604638906,-153.0,0.00054879,60]
[321905959,1712604638915,-202.7046065,0.00054879,60]
[321905960,1712604638925,-153.0,0.00054879,2]
[321905961,1712604638934,-363.6279674,0.00054879,60]
[321905962,1712604638943,-88.59578262,0.00054879,60]
[321905963,1712604638957,-66.27136708,0.00054879,60]
[321905964,1712604638967,-153.0,0.00054879,2]
[321905965,1712604638976,-153.0,0.00054879,2]
[321905966,1712604638985,-153.0,0.00054879,2]
[321905967,1712604638994,-153.0,0.00054879,2]
[321905968,1712604639004,-153.0,0.00054879,2]
[321905969,1712604639013,-1000.0,0.00055,2]
[321905970,1712604639023,-1000.0,0.00055,120]
[321905971,1712604639032,-301.84907546,0.00055177,4]
[321905972,1712604639041,-304.319644,0.00055479,120]
[321905973,1712604639049,-165.11983158,0.00055956,120]
[321905974,1712604639058,-603.69815092,0.00056105,7]
[321905975,1712604639067,-175.349068,0.00056236,2]
[321905976,1712604639076,-153.62015341,0.00056296,120]
[321905977,1712604639085,-153.0,0.00056391,30]
[321905978,1712604639094,-212.0,0.00056741,120]
[321905979,1712604639103,-166.80514614,0.00056897,120]
[321905980,1712604639112,-166.91046477,0.00057047,4]
[321905981,1712604639120,-212.0,0.00057218,120]
[321905982,1712604639130,-1207.39630185,0.00057525,30]
[321905983,1712604639139,-159.075559,0.00057839,2]
[321905984,1712604639148,-696.33423971,0.00057998,4]
[321905985,1712604639157,-1705.09703452,0.00057999,4]
[321905986,1712604639166,-10000.0,0.00058,45]
[321905987,1712604639179,-1509.0,0.00058561,10]
[321905988,1712604639188,-124.77430473,0.00058723,4]
[321905989,1712604639200,-2325.75789861,0.00058723,4]
[321905990,1712604639209,-2000.0,0.00058724,3]
[321905991,1712604639218,-153.0,0.00059452,60]
[321905992,1712604639227,-202.7046065,0.00059452,60]
[321905993,1712604639236,-153.0,0.00059452,60]
[321905995,1712604639244,-202.7046065,0.00059452,60]
[321905996,1712604639255,-153.0,0.00059452,60]
[321905998,1712604639264,-202.7046065,0.00059452,60]
[321906000,1712604639273,-202.7046065,0.00059452,60]
[321906002,1712604639281,-153.0,0.00059452,60]
[321906003,1712604639291,-1087.77505377,0.0006,30]
[321906004,1712604639300,-166.80514614,0.00060018,120]
[321906005,1712604639310,-212.0,0.00060079,120]
[321906007,1712604639319,-207.18381603,0.00060094,7]
[321906008,1712604639328,-464.50545485,0.00060094,7]
[321906009,1712604639337,-381.4241376,0.00060094,7]
[321906010,1712604639347,-158.42296434,0.00060094,7]
[321906011,1712604639356,-182.44299701,0.00060094,7]
[321906012,1712604639364,-500.0,0.00060095,120]
[321906013,1712604639373,-500.0,0.00060095,120]
[321906014,1712604639382,-500.0,0.00060095,120]
[321906015,1712604639391,-524.86,0.00060095,120]
[321906016,1712604639400,-500.0,0.0006027,120]
[321906017,1712604639409,-184.89909578,0.0006027,120]
[321906018,1712604639418,-166.90512393,0.00060271,7]
[321906019,1712604639429,-324.43791784,0.00060271,7]
[321906021,1712604639438,-155.0,0.00060271,7]
[321906023,1712604639447,-156.30461424,0.00060271,7]
[321906024,1712604639456,-155.89307877,0.00060271,7]
[321906025,1712604639466,-319.61536248,0.00060271,30]
[321906026,1712604639476,-3563.99130963,0.00060271,7]
[321906027,1712604639485,-2865.52895864,0.00060272,30]
[321906028,1712604639497,-9415.00945546,0.00060272,30]
[321906029,1712604639506,-556.48914455,0.00060273,61]
[321906030,1712604639518,-34057.33339269,0.00060273,61]
[321906031,1712604639947,-4809.58477283,0.00060273,61]
[321906032,1712604639959,-190.41522717,0.00060273,30]
[321906033,1712604639971,-89.15792486,0.00060273,30]
[321906034,1712604639980,-500.0,0.00060273,120]
[321906035,1712604639989,-500.0,0.00060273,120]
[321906036,1712604639999,-501.20629563,0.00060273,120]
[321906037,1712604640009,-500.0,0.00060273,120]
[321906038,1712604640018,-531.06223605,0.00060273,120]
[321906039,1712604640028,-500.0,0.00060273,120]
[321906040,1712604640037,-500.0,0.00060273,120]
[321906041,1712604640047,-500.0,0.00060273,120]
[321906042,1712604640056,-500.0,0.00060273,120]
[321906043,1712604640065,-500.0,0.00060273,120]
[321906044,1712604640074,-500.0,0.00060273,120]
[321906045,1712604640083,-500.93373194,0.00060273,7]
[321906046,1712604640093,-572.19280178,0.00060273,120]
[321906047,1712604640103,-500.0,0.00060273,120]
[321906048,1712604640112,-312.01041441,0.00060273,120]
[321906049,1712604640121,-500.0,0.00060273,120]
[321906050,1712604640131,-500.0,0.00060273,120]
[321906051,1712604640140,-500.0,0.00060273,120]
[321906052,1712604640149,-500.0,0.00060273,120]
[321906053,1712604640160,-500.0,0.00060273,120]
[321906054,1712604640173,-500.0,0.00060273,120]
[321906055,1712604640185,-500.0,0.00060273,120]
[321906056,1712604640193,-710.39,0.00060273,120]
[321906057,1712604640202,-528.55068803,0.00060273,120]
[321906058,1712604640211,-500.0,0.00060273,120]
[321906059,1712604640222,-500.0,0.00060273,120]
[321906060,1712604640231,-500.0,0.00060273,120]
[321906061,1712604640241,-500.0,0.00060273,120]
[321906062,1712604640250,-500.0,0.00060273,120]
[321906063,1712604640260,-500.0,0.00060273,120]
[321906064,1712604640270,-546.42236698,0.00060273,120]
[321906065,1712604640279,-500.0,0.00060273,120]
[321906066,1712604640288,-203.78569127,0.00060273,120]
[321906067,1712604640297,-500.0,0.00060273,120]
[321906068,1712604640306,-500.0,0.00060273,120]
[321906069,1712604640316,-500.0,0.00060273,120]
[321906070,1712604640325,-500.0,0.00060273,120]
[321906071,1712604640334,-500.0,0.00060273,120]
[321906072,1712604640343,-500.0,0.00060273,120]
[321906073,1712604640352,-500.0,0.00060273,120]
[321906074,1712604640362,-500.0,0.00060273,120]
[321906075,1712604640371,-500.0,0.00060273,120]
[321906076,1712604640380,-500.0,0.00060273,120]
[321906077,1712604640389,-500.0,0.00060273,120]
[321906078,1712604640399,-500.0,0.00060273,120]
[321906079,1712604640408,-500.0,0.00060273,120]
[321906080,1712604640417,-500.0,0.00060273,120]
[321906081,1712604640428,-500.0,0.00060273,120]
[321906082,1712604640437,-500.0,0.00060273,120]
[321906083,1712604640446,-500.0,0.00060273,120]
[321906084,1712604640455,-500.0,0.00060273,120]
[321906085,1712604640464,-500.0,0.00060273,120]
[321906086,1712604640473,-500.0,0.00060273,120]
[321906087,1712604640482,-500.0,0.00060273,120]
[321906088,1712604640491,-500.0,0.00060273,120]
[321906089,1712604640501,-500.0,0.00060273,120]
[321906090,1712604640510,-500.0,0.00060273,120]
[321906091,1712604640519,-500.0,0.00060273,120]
[321906092,1712604640527,-500.0,0.00060273,120]
[321906093,1712604640536,-537.33207718,0.00060273,120]
[321906094,1712604640546,-500.0,0.00060273,120]
[321906095,1712604640555,-501.31569427,0.00060273,120]
[321906096,1712604640564,-225.54366451,0.00060273,120]
[321906097,1712604640572,-958.86,0.00060273,2]
[321906098,1712604640581,-500.0,0.00060273,120]
[321906099,1712604640590,-500.0,0.00060273,120]
[321906100,1712604640599,-500.0,0.00060273,120]
[321906101,1712604640608,-583.76471091,0.00060273,120]
[321906102,1712604640617,-500.0,0.00060273,120]
[321906103,1712604640626,-300.0,0.00060273,7]
[321906104,1712604640636,-161.8084037,0.00060273,120]
[321906105,1712604640644,-500.0,0.00060273,120]
[321906106,1712604640653,-500.0,0.00060273,120]
[321906107,1712604640663,-1000.0,0.00060273,120]
[321906108,1712604640672,-500.0,0.00060273,120]
[321906109,1712604640681,-500.0,0.00060273,120]
[321906110,1712604640690,-378.96327577,0.00060273,120]
[321906111,1712604640700,-500.0,0.00060273,120]
[321906112,1712604640709,-510.97477035,0.00060273,120]
[321906113,1712604640719,-500.0,0.00060273,120]
[321906114,1712604640727,-569.06647598,0.00060273,120]
[321906115,1712604640737,-500.0,0.00060273,120]
[321906116,1712604640747,-500.0,0.00060273,120]
[321906117,1712604640756,-2055.79,0.00060273,120]
[321906118,1712604640765,-500.0,0.00060273,120]
[321906119,1712604640774,-500.0,0.00060273,120]
[321906120,1712604640783,-1525.36,0.00060273,120]
[321906121,1712604640793,-500.0,0.00060273,120]
[321906122,1712604640802,-500.0,0.00060273,120]
[321906123,1712604640811,-500.0,0.00060273,120]
[321906124,1712604640821,-500.0,0.00060273,120]
[321906125,1712604640830,-580.86,0.00060273,120]
[321906126,1712604640839,-500.0,0.00060273,120]
[321906127,1712604640849,-582.78092893,0.00060273,120]
[321906128,1712604640859,-500.0,0.00060273,120]
[321906129,1712604640868,-500.0,0.00060273,120]
[321906130,1712604640877,-501.53845548,0.00060273,120]
[321906131,1712604640887,-500.0,0.00060273,120]
[321906132,1712604640896,-500.0,0.00060273,120]
[321906133,1712604640906,-500.0,0.00060273,120]
[321906134,1712604640916,-500.0,0.00060273,120]
[321906135,1712604640925,-500.0,0.00060273,120]
[321906136,1712604640935,-500.0,0.00060273,120]
[321906137,1712604640944,-500.0,0.00060273,120]
[321906138,1712604640954,-500.0,0.00060273,120]
[321906139,1712604640966,-500.0,0.00060273,120]
[321906140,1712604640976,-500.0,0.00060273,120]
[321906141,1712604640986,-500.0,0.00060273,7]
[321906142,1712604640995,-500.0,0.00060273,120]
[321906143,1712604641067,-703.02,0.00060273,120]
[321906144,1712604641076,-500.0,0.00060273,120]
[321906145,1712604641084,-500.0,0.00060273,120]
[321906146,1712604641094,-500.0,0.00060273,120]
[321906147,1712604641103,-500.0,0.00060273,120]
[321906148,1712604641111,-500.0,0.00060273,120]
[321906149,1712604641121,-500.0,0.00060273,120]
[321906150,1712604641130,-500.0,0.00060273,120]
[321906151,1712604641139,-500.0,0.00060273,120]
[321906152,1712604641148,-500.0,0.00060273,120]
[321906153,1712604641158,-154.87609912,0.00060273,120]
[321906154,1712604641168,-500.0,0.00060273,120]
[321906155,1712604641184,-584.243083,0.00060273,120]
[321906156,1712604641193,-500.0,0.00060273,120]
[321906157,1712604641202,-618.0,0.00060273,120]
[321906158,1712604641212,-500.0,0.00060273,120]
[321906159,1712604641223,-500.0,0.00060273,120]
[321906160,1712604641233,-500.0,0.00060273,120]
[321906161,1712604641243,-500.0,0.00060273,120]
[321906162,1712604641255,-500.0,0.00060273,120]
[321906163,1712604641265,-570.4715064,0.00060273,120]
[321906164,1712604641274,-500.0,0.00060273,120]
[321906165,1712604641283,-500.0,0.00060273,120]
[321906166,1712604641292,-500.0,0.00060273,120]
[321906167,1712604641302,-500.0,0.00060273,120]
[321906168,1712604641312,-1169.7,0.00060273,120]
[321906169,1712604641323,-500.0,0.00060273,120]
[321906170,1712604641332,-500.0,0.00060273,120]
[321906171,1712604641342,-500.0,0.00060273,120]
[321906172,1712604641351,-500.0,0.00060273,120]
[321906173,1712604641361,-500.0,0.00060273,120]
[321906174,1712604641370,-500.0,0.00060273,120]
[321906175,1712604641379,-500.0,0.00060273,120]
[321906176,1712604641388,-500.0,0.00060273,120]
[321906177,1712604641400,-283.54400454,0.00060273,120]
[321906178,1712604641409,-500.0,0.00060273,120]
[321906179,1712604641418,-500.0,0.00060273,120]
[321906180,1712604641428,-500.0,0.00060273,120]
[321906181,1712604641437,-500.0,0.00060273,120]
[321906182,1712604641446,-1230.76380364,0.00060273,120]
[321906183,1712604641461,-251.36619636,0.00060273,120]
[321906184,1712604641470,-500.0,0.00060273,120]
[321906185,1712604641478,-500.0,0.00060273,120]
[321906186,1712604641487,-742.82,0.00060273,2]
[321906187,1712604641496,-500.0,0.00060273,120]
[321906188,1712604641505,-585.98663152,0.00060273,120]
[321906189,1712604641515,-500.0,0.00060273,120]
[321906190,1712604641523,-500.0,0.00060273,120]
[321906191,1712604641532,-500.0,0.00060273,120]
[321906192,1712604641541,-500.0,0.00060273,120]
[321906193,1712604641550,-500.0,0.00060273,120]
[321906194,1712604641559,-534.73440001,0.00060273,120]
[321906195,1712604641568,-500.0,0.00060273,120]
[321906196,1712604641578,-154.87609912,0.00060273,120]
[321906197,1712604641587,-1656.38,0.00060273,120]
[321906198,1712604641596,-500.0,0.00060273,120]
[321906199,1712604641605,-500.0,0.00060273,120]
[321906200,1712604641614,-500.0,0.00060273,120]
[321906201,1712604641623,-500.0,0.00060273,120]
[321906202,1712604641633,-386.65850247,0.00060273,120]
[321906267,1712604643100,-113.34149753,0.00060273,120]
[321906268,1712604643110,-500.0,0.00060273,120]
[321906269,1712604643119,-500.0,0.00060273,120]
[321906270,1712604643128,-500.0,0.00060273,120]
[321906271,1712604643137,-215.65850247,0.00060273,120]
[321906272,1712604643147,-284.34149753,0.00060273,120]
[321906273,1712604643157,-508.36395451,0.00060273,120]
[321906274,1712604643166,-500.0,0.00060273,120]
[321906276,1712604643178,-500.0,0.00060273,120]
[321906278,1712604643189,-500.0,0.00060273,120]
[321906280,1712604643199,-500.0,0.00060273,120]
[321906281,1712604643208,-151.0,0.00060273,120]
[321906282,1712604643218,-500.0,0.00060273,120]
[321906283,1712604643228,-500.0,0.00060273,120]
[321906284,1712604643238,-500.0,0.00060273,120]
[321906285,1712604643249,-500.0,0.00060273,120]
[321906286,1712604643260,-500.0,0.00060273,120]
[321906287,1712604643272,-500.0,0.00060273,120]
[321906288,1712604643282,-813.98,0.00060273,120]
[321906289,1712604643294,-500.0,0.00060273,120]
[321906290,1712604643305,-177.94374007,0.00060273,120]
[321906291,1712604643315,-500.0,0.00060273,120]
[321906292,1712604643326,-508.18434058,0.00060273,120]
[321906293,1712604643337,-500.0,0.00060273,120]
[321906294,1712604643352,-500.0,0.00060273,120]
[321906295,1712604643363,-500.0,0.00060273,120]
[321906296,1712604643374,-500.0,0.00060273,120]
[321906297,1712604643384,-500.0,0.00060273,120]
[321906298,1712604643395,-284.0518061,0.00060273,120]
[321906299,1712604643405,-500.0,0.00060273,120]
[321906300,1712604643416,-502.09778527,0.00060273,120]
[321906301,1712604643430,-500.0,0.00060273,120]
[321906302,1712604643441,-500.0,0.00060273,120]
[321906303,1712604643451,-655.16,0.00060273,120]
[321906304,1712604643462,-500.0,0.00060273,120]
[321906305,1712604643471,-500.0,0.00060273,120]
[321906306,1712604643483,-500.0,0.00060273,120]
[321906307,1712604643492,-500.0,0.00060273,120]
[321906308,1712604643502,-500.0,0.00060273,120]
[321906309,1712604643511,-500.0,0.00060273,120]
[321906310,1712604643521,-500.0,0.00060273,120]
[321906311,1712604643530,-500.0,0.00060273,120]
[321906312,1712604643540,-500.0,0.00060273,120]
[321906313,1712604643549,-500.0,0.00060273,120]
[321906314,1712604643558,-1087.73,0.00060273,120]
[321906315,1712604643568,-500.0,0.00060273,120]
[321906316,1712604643577,-1043.68,0.00060273,120]
[321906317,1712604643586,-500.0,0.00060273,120]
[321906318,1712604643595,-235.73734029,0.00060273,120]
[321906319,1712604643604,-388.67561838,0.00060273,120]
[321906320,1712604643614,-500.0,0.00060273,120]
[321906321,1712604643624,-1900.0,0.00060273,120]
[321906322,1712604643634,-500.0,0.00060273,120]
[321906323,1712604643644,-500.0,0.00060273,120]
[321906324,1712604643654,-500.0,0.00060273,120]
[321906325,1712604643728,-500.0,0.00060273,120]
[321906326,1712604643738,-500.0,0.00060273,120]
[321906327,1712604643748,-595.89,0.00060273,120]
[321906328,1712604643758,-5311.02,0.00060273,120]
[321906329,1712604643767,-500.0,0.00060273,120]
[321906330,1712604643776,-500.0,0.00060273,120]
[321906331,1712604643786,-500.0,0.00060273,120]
[321906332,1712604643797,-500.0,0.00060273,120]
[321906333,1712604643808,-1842.58,0.00060273,120]
[321906334,1712604643818,-3772.14,0.00060273,120]
[321906335,1712604643829,-500.0,0.00060273,120]
[321906336,1712604643840,-500.0,0.00060273,120]
[321906337,1712604643850,-500.0,0.00060273,120]
[321906338,1712604643861,-500.0,0.00060273,120]
[321906339,1712604643871,-1655.56,0.00060273,120]
[321906340,1712604643882,-1364.08,0.00060273,120]
[321906341,1712604643892,-500.0,0.00060273,120]
[321906342,1712604643901,-1956.47,0.00060273,120]
[321906343,1712604643911,-2235.62,0.00060273,120]
[321906344,1712604643920,-500.0,0.00060273,60]
[321906345,1712604643933,-830.55,0.00060273,120]
[321906346,1712604643942,-1139.25,0.00060273,120]
[321906347,1712604643952,-500.0,0.00060273,120]
[321906348,1712604643962,-500.0,0.00060273,120]
[321906349,1712604643972,-502.32667059,0.00060273,120]
[321906350,1712604643981,-500.0,0.00060273,120]
[321906351,1712604643991,-3233.97,0.00060273,120]
[321906352,1712604644001,-500.0,0.00060273,120]
[321906353,1712604644011,-500.0,0.00060273,120]
[321906354,1712604644020,-500.0,0.00060273,120]
[321906355,1712604644030,-500.0,0.00060273,120]
[321906356,1712604644039,-2051.24,0.00060273,120]
[321906357,1712604644048,-927.66,0.00060273,120]
[321906358,1712604644059,-500.0,0.00060273,120]
[321906359,1712604644116,-519.12799385,0.00060273,120]
[321906360,1712604644126,-318.50698965,0.00060273,120]
[321906361,1712604644134,-561.63,0.00060273,120]
[321906362,1712604644144,-658.76,0.00060273,120]
[321906363,1712604644153,-1703.11,0.00060273,120]
[321906364,1712604644163,-500.0,0.00060273,120]
[321906365,1712604644173,-500.0,0.00060273,120]
[321906366,1712604644186,-1169.94,0.00060273,120]
[321906367,1712604644195,-500.0,0.00060273,120]
[321906368,1712604644204,-500.0,0.00060273,120]
[321906369,1712604644214,-500.0,0.00060273,120]
[321906370,1712604644223,-500.0,0.00060273,120]
[321906371,1712604644233,-500.0,0.00060273,120]
[321906372,1712604644242,-500.0,0.00060273,120]
[321906373,1712604644251,-11420.41654929,0.00060273,90]
[321906374,1712604644268,-585.0,0.000534,30]
[321906375,1712604644277,-237.32575053,0.00060273,90]
[321906384,1712604647022,-331.45022828,0.00060272,12]
[321906385,1712604647032,-1020.34770018,0.00060273,90]
[321906386,1712604647041,-2397.73,0.00060273,120]
[321906387,1712604647050,-298.7034274,0.00060273,120]
[321906388,1712604647059,-501.20967966,0.00060273,120]
[321906389,1712604647068,-500.0,0.00060273,120]
[321906390,1712604647077,-500.0,0.00060273,120]
[321906391,1712604647087,-597.2283522,0.00060273,120]
[321906392,1712604647096,-500.0,0.00060273,120]
[321906393,1712604647105,-500.0,0.00060273,120]
[321906394,1712604647114,-500.0,0.00060273,120]
[321906395,1712604647123,-166.81943626,0.00060273,120]
[321906396,1712604647133,-3278.7,0.00060273,21]
[321906397,1712604647142,-500.0,0.00060273,120]
[321906398,1712604647151,-701.95,0.00060273,120]
[321906399,1712604647160,-500.0,0.00060273,120]
[321906400,1712604647169,-500.0,0.00060273,120]
[321906401,1712604647183,-500.0,0.00060273,120]
[321906402,1712604647192,-500.0,0.00060273,120]
[321906403,1712604647201,-500.0,0.00060273,120]
[321906404,1712604647210,-500.0,0.00060273,120]
[321906405,1712604647221,-500.0,0.00060273,120]
[321906406,1712604647231,-500.0,0.00060273,120]
[321906407,1712604647243,-556.15,0.00060273,120]
[321906408,1712604647258,-500.0,0.00060273,120]
[321906409,1712604647273,-500.0,0.00060273,120]
[321906410,1712604647283,-500.0,0.00060273,120]
[321906411,1712604647292,-673.91,0.00060273,120]
[321906412,1712604647302,-848.6,0.00060273,120]
[321906413,1712604647311,-1177.69,0.00060273,120]
[321906414,1712604647321,-1362.47,0.00060273,120]
[321906415,1712604647330,-500.0,0.00060273,120]
[321906416,1712604647340,-500.0,0.00060273,120]
[321906417,1712604647350,-500.0,0.00060273,120]
[321906418,1712604647360,-500.0,0.00060273,120]
[321906419,1712604647369,-500.0,0.00060273,120]